Cogmind - Beta 14 @@@ ROGUE MODE // 2024.10.07 @ 16:55:43 Player: N.W.L Result: Destroyed by Autobeam Turret with Autobeam Performance ------------- Evolutions (0) 0 Regions Visited (2) 400 Robots Destroyed (24) 120 Value Destroyed (470) 470 Prototype IDs (11) 220 Alien Tech Used (0) 0 Bonus (0) 0 TOTAL SCORE: 1210 Bonus ------- None Cogmind --------- Core Integrity 0/250 Matter 294/300 Energy 199/200 System Corruption 0% Temperature Cool (12) Movement Rolling (140) Ox3 Location -10/Subcaves Parts ------- > --- POWER (1+1) ------ Subdweller Power Source > --- PROPULSION (2+1) - Spiked Treads Subdweller Monowheel > --- UTILITY (2+1) ---- High-capacity Storage Unit Seismic Detector (+) Rainbow Chip > --- WEAPON (2+1) ----- Subdweller Beam Cannon Slug Cannon Makeshift Hammer (+) > --- INVENTORY (20) --- Subdweller Power Source Sensor Array Terrain Scanner ECM Suite Scrap Shield Tractor Beam Subdweller Beam Cannon Barrage Gun Battle Cannon Battle Cannon Battle Cannon Subdweller Shrapnel Launcher Datajack Multitool Flamer Flamer Shrapnel Trap Piercing Trap Piercing Trap Peak State ------------ > --- POWER ------------ Subdweller Power Source > --- PROPULSION ------- Spiked Treads Subdweller Monowheel > --- UTILITY ---------- High-capacity Storage Unit Seismic Detector Rainbow Chip > --- WEAPON ----------- Subdweller Beam Cannon Slug Cannon Makeshift Hammer > --- INVENTORY -------- Sensor Array Terrain Scanner ECM Suite Scrap Shield Tractor Beam Riot Gun Subdweller Beam Cannon Barrage Gun Battle Cannon Battle Cannon Battle Cannon Subdweller Shrapnel Launcher Datajack Flamer Flamer Shrapnel Trap Piercing Trap [Rating: 34] Favorites ----------- Power Light Ion Engine Engine Light Ion Engine Propulsion Light Treads Treads Light Treads Leg Aluminum Leg Wheel Subdweller Monowheel Utility High-capacity Storage Unit Device Seismic Detector Storage High-capacity Storage Unit Processor Rainbow Chip Protection Core Shielding Weapon Battle Cannon Energy Gun Medium Laser Energy Cannon Beam Cannon Ballistic Gun Assault Rifle Ballistic Cannon Battle Cannon Special Weapon Mining Laser Impact Weapon Makeshift Hammer Build | -11 -10 -10 ------- Run | Yrd Mat Sub Slots Evolved . | . . . Power . | . . . Propulsion . | . . . Utility . | . . . Weapon . | . . . Parts Attached 25 | . 9 16 Power 2 | . . 2 Engine 2 | . . 2 Core . | . . . Reactor . | . . . Propulsion 5 | . 2 3 Treads 3 | . 2 1 Leg . | . . . Wheel 2 | . . 2 Hover . | . . . Flight . | . . . Utility 4 | . 2 2 Device 1 | . . 1 Storage 1 | . 1 . Processor 1 | . . 1 Hackware . | . . . Protection 1 | . 1 . Artifact . | . . . Weapon 14 | . 5 9 Energy Gun . | . . . Energy Cannon 5 | . 3 2 Ballistic Gun 1 | . 1 . Ballistic Cannon 4 | . . 4 Launcher . | . . . Special Weapon 2 | . 1 1 Impact Weapon 2 | . . 2 Slashing Weapon . | . . . Piercing Weapon . | . . . Special Melee Weapon . | . . . Unidentified Prototypes . | . . . Parts Lost 5 | . . 5 Power 2 | . . 2 Propulsion 2 | . . 2 Utility . | . . . Weapon 1 | . . 1 Highest Loss Streak 2 | . . 2 To Critical Strikes . | . . . Average Slot Usage (%) 81 | . 95 75 Engine 9 | . 14 8 Treads 16 | . 25 13 Wheel 3 | . . 5 Device 5 | . . 8 Storage 13 | . 23 9 Processor 5 | . . 8 Energy Cannon 8 | . 19 4 Ballistic Gun 1 | . 6 . Ballistic Cannon 9 | . . 13 Impact Weapon 2 | . . 3 Peak Build Rating 34 | . 8 34 Average Rating 20 | . 7 26 On Entrance 6 | 6 6 8 Naked Turns . | . . . Heaviest Build 64 | 14 56 64 Greatest Support 40 | 20 40 40 Greatest Overweight (x) 3 | . 1 3 Average Overweight (x) 1 | . . 1 Largest Inventory Capacity 20 | . 20 20 Average Capacity 18 | . 16 20 Most Carried 20 | . 16 20 Average Carried 15 | . 10 17 Final Capacity 20 | 8 20 20 Final Carried 20 | 6 15 20 Class Distribution -------------------- 78% | Mutant 21% | Derelict-Mutant Dominant Class ---------------- Mutant | -10/Materials Mutant | -10/Subcaves Resources | -11 -10 -10 ----------- Run | Yrd Mat Sub Matter Collected 802 | 195 212 395 Remotely . | . . . Salvage Created 526 | . 298 228 Parts 46 | . 35 11 Haulers Intercepted 2 | . 2 . Recyclers Shooed . | . . . Parts Field Recycled . | . . . Retrieved Matter . | . . . Parts Self-Destructed 1 | . . 1 Prevented . | . . . Kills | -11 -10 -10 ------- Run | Yrd Mat Sub Combat Hostiles Destroyed 17 | . 9 8 Guns 6 | . 6 . Cannons 10 | . 3 7 Classes Destroyed 6 | . 5 1 Worker 1 | . 1 . Tunneler 1 | . 1 . Hauler 2 | . 2 . Watcher 3 | . 3 . Swarmer 9 | . 9 . Subdweller 8 | . . 8 Best Kill Streak 4 | . 4 2 Combat Bots Only 3 | . 3 2 Max Kills in Single Turn 2 | . 2 1 Gunslinging 1 | . 1 . Exploded . | . . . Melee . | . . . Uniques/NPCs Destroyed . | . . . Combat | -11 -10 -10 -------- Run | Yrd Mat Sub Hostile Shots Fired 117 | . 61 56 Missed 36 | . 18 18 Damage Taken 1080 | . 337 743 Core 255 | . 81 174 Absorbed by Shields . | . . . Redirected to Shielding 13 | . . 13 Core Remaining (%) 100 | 100 . . Volleys Fired 111 | . 42 69 Largest 2 | . 2 2 Hottest 128 | . 120 128 Shots Fired 183 | . 82 101 Gun 60 | . 60 . Cannon 88 | . 20 68 Launcher . | . . . Special 35 | . 2 33 Kinetic 92 | . 49 43 Thermal 91 | . 33 58 Explosive . | . . . Electromagnetic . | . . . Robot Hit Streak 13 | . 6 13 Robot Miss Streak 4 | . 4 2 Penetration Max . | . . . Secondary Targets 4 | . 4 . Max Gunslinging Chain 1 | . 1 . Shots Hit Robots 84 | . 42 42 Core Hits 28 | . 18 10 Critical Kills 1 | . . 1 Critical Parts Destroyed 1 | . 1 . Critical Strikes 5 | . 1 4 Meltdown 1 | . . 1 Destroy 3 | . 1 2 Blast 1 | . . 1 Melee Attacks 17 | . . 17 Impact 17 | . . 17 Slashing . | . . . Piercing . | . . . Sneak Attacks . | . . . Combat Hostiles . | . . . Follow-up Attacks . | . . . Damage Inflicted 1619 | . 633 986 Guns 439 | . 439 . Cannons 1177 | . 194 983 Explosions . | . . . Melee . | . . . Ramming 3 | . . 3 Kinetic 953 | . 346 607 Thermal 663 | . 287 376 Explosive . | . . . Electromagnetic . | . . . Impact . | . . . Slashing . | . . . Piercing . | . . . Highest Corruption . | . . . Average Corruption . | . . . Corruption Purged . | . . . Corruption Blocked . | . . . Overload Shots . | . . . Overflow Damage 5 | . 5 . Projectiles 5 | . 5 . Explosions . | . . . Melee . | . . . Knockbacks 4 | . . 4 Impact . | . . . Kinetic 4 | . . 4 Secondary . | . . . Self-Inflicted Damage . | . . . Shots . | . . . Rammed 1 | . . 1 Targets Rammed 1 | . . 1 Kicked . | . . . Crushed . | . . . Highest Temperature 180 | . 180 36 Average Temperature 37 | . 45 14 Received Heat Transfer 168 | . . 168 Siege Activations . | . . . Robots Corrupted . | . . . Combat Hostiles . | . . . Parts Fried . | . . . Impact Corruptions . | . . . Robots Melted 1 | . . 1 Combat Hostiles 1 | . . 1 Parts Melted 4 | . 1 3 Heat Transferred 1369 | . 666 703 Parts Sabotaged . | . . . Parts Stolen . | . . . Parts Stripped . | . . . Power Chain Reactions . | . . . Alert | -11 -10 -10 ------- Run | Yrd Mat Sub Peak Influence 188 | . 188 . Initial . | . . . Average 48 | . 48 . Maximum Alert Level . | . . . Low Security (%) 100 | . 100 . Level 1 . | . . . Level 2 . | . . . Level 3 . | . . . Level 4 . | . . . Level 5 . | . . . High Security . | . . . Max Security . | . . . Squads Dispatched . | . . . Investigation . | . . . Extermination . | . . . Reinforcement . | . . . Assault . | . . . Garrison . | . . . Intercept . | . . . Searches Triggered . | . . . Construction Impeded . | . . . Haulers Reinforced . | . . . Active Scanning Responses . | . . . Cargo Convoy Interrupts . | . . . Stealth | -11 -10 -10 --------- Run | Yrd Mat Sub Distress Signals 1 | . 1 . Communications Jammed . | . . . Distress Signals . | . . . Times Spotted 27 | . 14 13 Peak Tracking Total 5 | . 4 5 Tactical Retreats 1 | . . 1 Traps | -11 -10 -10 ------- Run | Yrd Mat Sub Traps Triggered 1 | . . 1 Indirectly . | . . . Trap Hack Attempts . | . . . Triggered . | . . . Disarmed . | . . . Reprogrammed . | . . . Reused . | . . . Traps Extracted . | . . . Installed . | . . . Triggered . | . . . Most Traps Carried 3 | . . 3 Machines | -11 -10 -10 ---------- Run | Yrd Mat Sub Machines Disabled 1 | . . 1 Max in Single Turn 1 | . . 1 Machines Repaired . | . . . Machines Dismantled . | . . . Machines Sabotaged . | . . . Overloaded Fab Kills . | . . . Hacking | -11 -10 -10 --------- Run | Yrd Mat Sub Machines Accessed 6 | . 5 1 Terminals 5 | . 5 . Fabricators . | . . . Repair Stations . | . . . Recycling Units . | . . . Scanalyzers . | . . . Garrison Access . | . . . Total Hacks 17 | . 16 1 Successful 6 | . 5 1 Failed 11 | . 11 . Catastrophic 2 | . 2 . Database Lockouts . | . . . Manual 6 | . 6 . Terminals 16 | . 16 . Fabricators . | . . . Repair Stations . | . . . Recycling Units . | . . . Scanalyzers . | . . . Garrison Access . | . . . Terminal Hacks 5 | . 4 1 Robot Analysis 2 | . 2 . Locate Traps 1 | . 1 . Zone Layout 1 | . 1 . Derelict Proto ID Bank 1 | . . 1 Fabricator Hacks . | . . . Repair Station Hacks . | . . . Recycling Unit Hacks . | . . . Scanalyzer . | . . . Garrison Access Hacks . | . . . Unauthorized Hacks 1 | . 1 . Terminals 1 | . 1 . Operators 1 | . 1 . Fabricators . | . . . Repair Stations . | . . . Recycling Units . | . . . Scanalyzers . | . . . Garrison Access . | . . . Data Cores Recovered . | . . . Used . | . . . Hacking Detections 5 | . 5 . Full Trace Events . | . . . Feedback Events . | . . . Feedback Blocked . | . . . Robot Schematics Acquired . | . . . Robots Built . | . . . Authchips . | . . . Time . | . . . Total Robot Build Rating . | . . . Part Schematics Acquired . | . . . Parts Built . | . . . Authchips . | . . . Time . | . . . Total Part Build Rating . | . . . Parts Repaired . | . . . Time . | . . . Parts Recycled . | . . . Recycled Matter . | . . . Retrieved Matter . | . . . Retrieved Components . | . . . Parts Scanalyzed . | . . . Part Schematics Acquired . | . . . Parts Damaged . | . . . Bothacking | -11 -10 -10 ------------ Run | Yrd Mat Sub Used RIF Installer . | . . . Robots Hacked . | . . . Non-combat . | . . . Combat . | . . . Robot Hacks Applied . | . . . Relay Couplers Released . | . . . Fabnet Peak Effective % . | . . . Robots Rewired . | . . . Allies Hacked . | . . . Hacks Repelled . | . . . Allies | -11 -10 -10 -------- Run | Yrd Mat Sub Total Allies . | . . . Largest Group . | . . . Highest-Rated Group . | . . . Highest-Rated Ally . | . . . Total Orders . | . . . Ally Attacks . | . . . Total Damage . | . . . Kills . | . . . Allies Corrupted . | . . . Allies Melted . | . . . Intel | -11 -10 -10 ------- Run | Yrd Mat Sub Robot Analysis Total 2 | . 2 . Derelict Logs Recovered 2 | . . 2 Drone Launches . | . . . Drone Recoveries . | . . . Exploration | -11 -10 -10 ------------- Run | Yrd Mat Sub Turns Passed 4252 | . 1300 2952 Spaces Moved 1595 | 1 546 1048 Core . | . . . Treads 1079 | . 450 629 Legs 97 | 1 96 . Wheels 419 | . . 419 Hover . | . . . Flight . | . . . Fastest Speed 120 | 120 120 130 Average Speed 213 | 120 203 219 Slowest Speed 360 | 120 240 360 Overloaded Moves . | . . . Propulsion Burnouts . | . . . Robots Hopped . | . . . Cave-ins Triggered . | . . . Exploration Rate (%) 47 | 2 88 52 Regions Visited 2 Branch Regions 1 Pre-discovered Areas 1 | . . 1 Known Exits Taken . | . . . Unknown Exits Taken 2 | 1 1 . Scrap Searched 15 | . . 15 Spaces Dug 30 | . 2 28 Terrain Destroyed 45 | . 2 43 Melee 11 | . . 11 Projectile 34 | . 2 32 AOE . | . . . Terrain Rammed . | . . . Walls Destroyed . | . . . Machines Disabled . | . . . Actions | -11 -10 -10 --------- Run | Yrd Mat Sub Total 2172 | . 650 1522 Wait 365 | . 30 335 Move 1593 | . 545 1048 Hop . | . . . Pick Up 34 | . 16 18 Fast Attach 11 | . 2 9 Attach 6 | . 2 4 Detach 2 | . . 2 Swap 8 | . 5 3 Drop 24 | . 8 16 Fire 111 | . 42 69 Melee 17 | . . 17 Ram . | . . . Kick . | . . . Crush 1 | . . 1 Escape Stasis . | . . . Rewire . | . . . Trap . | . . . Miscellaneous . | . . . Route ------- -11/Scrapyard -10/Materials (discovered 6 exits: [*Mat x3] / [*Min x2] / *Sub) -10/Subcaves (discovered 3 exits: *Mat x2 / [*Rec]) History --------- Turn | Location | Event 1 | -11/Scrapyard | Discovered new exit (range 0) 1 | -11/Scrapyard | Entered Materials 61 | -10/Materials | Discovered new exit (range 7) 316 | -10/Materials | Build established: Mutant 562 | -10/Materials | Discovered new exit (range 9) 648 | -10/Materials | Discovered new exit (range 10) 1013 | -10/Materials | Discovered new exit (range 10) 1209 | -10/Materials | Discovered new exit (range 16) 1292 | -10/Materials | Discovered new exit (range 3) 1301 | -10/Materials | Entered Subcaves 1335 | -10/Subcaves | Core integrity fell below 50% 1529 | -10/Subcaves | Visited 4L-MR0's lab 1572 | -10/Subcaves | Found Rainbow Chip 1573 | -10/Subcaves | Attached Rainbow Chip, gained temporary slots: Power, Propulsion, Utility, Weapon 2554 | -10/Subcaves | Identified exit to Materials 2979 | -10/Subcaves | Discovered exit to Materials (range 16) 3099 | -10/Subcaves | Disturbed a concealed Subdweller 3352 | -10/Subcaves | Ambushed by Subdweller buried in earth 3357 | -10/Subcaves | Core integrity fell below 20% 3357 | -10/Subcaves | Ambushed by Subdweller buried in earth 3427 | -10/Subcaves | Ambushed by Subdweller buried in earth 3512 | -10/Subcaves | Ambushed by Subdweller buried in earth 3741 | -10/Subcaves | Build established: Derelict-Mutant 4220 | -10/Subcaves | Shifting Twisted Machinery released Piercing Trap 4224 | -10/Subcaves | Learned location of Zion (-6) 4253 | -10/Subcaves | Discovered new exit (range 14) 4253 | -10/Subcaves | Destroyed by Autobeam Turret with Autobeam Last Messages --------------- 03457_ Acquired 1 matter. 03459_ Subatomizers dissect the Sub. Optics. 03464_ Extracted 4 energy. 03513_ LP-KWG(R): "NOSTUCKSUB!" 03516_ Lgt. Treads destroyed. 03517_ LP-KWG(R) destroyed. 03524_ Acquired Sub. Monowheel. 03526_ Acquired 17 matter. 03530_ Acquired Sub. Power Source. 03532_ Acquired 4 matter. 03533_ Acquired 6 matter. 04213_ Subatomizers dissect the Sub. Machine Gun. Piercing Trap falls loose from the Twisted Machinery. 04224_ Acquired derelict log, extracted data. World map updated: -6/Zion. 04233_ Acquired Piercing Trap. 04236_ Acquired Sub. Power Source. 04244_ Dropped Riot Gun. 04245_ Acquired Multitool. 04253_ EXIT=FOUND Map ----- +----------------------------------------------------+ | ?????????????????????????????????????????????????? | | ?????????????????????????????????????????????????? | | ?????????????????????????????????????????????????? | | ?????????????????????????????????????????????????? | | ?????????????????????????????????????????????????? | | ?????????????????????????????????????????????????? | | ?????????????????????????????????????????????????? | | ?????????????????????????????????????????????????? | | ?????????????????????????????????????????????????? | | ?????????????????????????????????????????????????? | | ?????????????????????????????????????????????????? | | ??????????????????????????? ?????????????????????? | | ????????????????????# ????? ????????????????????? | | ????????????????????? ????? ????????????????????? | | ????????????????????? ##??# ????????????????????? | | ????????????????????? ## ?????????????????????? | | ?????????????????????? ?????????????????????? | | ???###???????????????? ?????????????????????? | | ???# ##??????##?????? #?????????????????????? | | ???# #?????""" ?????? #?????????????????????? | | ???# #?????" ????? ??????????????????????? | | ???# ##????" ##### ??????????????????????? | | ???# #####""t ##?????????????????????? | | ???# #?< s #?????????????????????? | | ??## #??????? s #???????#?????????????? | | ?## ##????????????#s @#??????? #######???????? | | ?# ####??????????#;[%######? #???????? | | #### ##?????????### "## ## #???????? | | ### # #???????????#%" #????????? | | #?# ########???#### " #??????????? | | ##### ##### "## " ####??????????? | | ## ### # # " ### " ""#?????????????? | | ### " """"" # """##?????????????? | | ## """"" """"""""""""" """ #??????????????? | | ######"%" """ #??????????????? | | ### #### [& ##" #??????????????? | | ## ##?### != ### #??????????????? | | ?## ####?# """" ######?# ##??????????????? | | ??## #?###"#"###??????# #???????????????? | | #??# ##??#####????????#"""""##???????????????? | | ??# ### ###????????##""""#????????????????? | | ### "" "??????????#""" ????????????????? | | ### """""" "???????????????????????????????? | | #??## "##"?????????????????????????????????? | | #???### ##???????????????????????????????????? | | #??????# ##????????????????????????????????????? | | #?????## ##????????????????????????????????????? | | #????## "##???????????????????????????????????? | | #????# ""##?###??????????????????????????????? | | #???# #?#"##?????????????????????????????? | +----------------------------------------------------+ Best States ------------- Heat Dissipation 25 Energy Generation 15 Energy Capacity 250 Matter Stores 300 Matter Capacity 300 Sight Range 16 Terrain Scan Density 10 Core Shielding 20 Evasion (%) 55 Recoil Reduction 2 Item Schematics ----------------- None Robot Schematics ------------------ None Fabricated ------------ Nothing Alien Tech Used ----------------- None Achievements -------------- None Challenges ------------ None Game ------ Seed BackupStasisCleaver Manual? 0 Play Time 00:17:58 Cumulative 323.6 hours Start 2024.10.07 @ 16:38:00 End 2024.10.07 @ 16:55:43 Sessions 1 Manual Loads 0 Difficulty Rogue Special Mode None Game No. 158 Rogue 158 Adventurer 0 Explorer 0 Win Type - Total 9 Types 5/1/3/0/0/0/0/0/0 Lore% 82 Gallery% 87 Achievement% 73 Wizard Run 0 Options --------- Layout 0 ASCII 0 Keyboard 0 Movement Mouse Keybinds 0 Fullscreen 2 Font 12/Smallcaps Map View 83x54 Zoom Use 0% Tactical HUD 1 Map Filters NONE Filters NONE Steam 1 RUN: 45aca62e-3295-4394-a080-3ce0aa7a7efe